[Event "Betsys MČR v online bleskovém šachu 2021"]
[Site "Chess.com"]
[Date "2021.04.17"]
[Round "8"]
[White "HonzaVykouk"]
[Black "fadamos"]
[Result "1-0"]
[WhiteElo "2685"]
[BlackElo "2301"]
[TimeControl "180+1"]
[EndTime "10:21:41 PDT"]
[Termination "Uživatel HonzaVykouk zvítězil po vzdání soupeře"]

1. e4 {[%clk 0:03:00.9]} 1... d6 {[%clk 0:02:59.2]} 2. d4 {[%clk 0:02:59.7]}
2... Nf6 {[%clk 0:02:58.9]} 3. Nc3 {[%clk 0:03:00]} 3... g6 {[%clk 0:02:59]} 4.
Be3 {[%clk 0:03:00.2]} 4... a6 {[%clk 0:02:58.6]} 5. f3 {[%clk 0:02:59.7]} 5...
b5 {[%clk 0:02:58.8]} 6. Qd2 {[%clk 0:02:59.9]} 6... Nbd7 {[%clk 0:02:59.1]} 7.
h4 {[%clk 0:03:00.5]} 7... Bb7 {[%clk 0:02:59]} 8. Nh3 {[%clk 0:03:00.3]} 8...
Nb6 {[%clk 0:02:51.5]} 9. b3 {[%clk 0:02:59.8]} 9... h5 {[%clk 0:02:45.1]} 10.
Ng5 {[%clk 0:02:59.3]} 10... Bg7 {[%clk 0:02:44.3]} 11. O-O-O {[%clk 0:02:59]}
11... Nfd7 {[%clk 0:02:42.5]} 12. Ne2 {[%clk 0:02:55.1]} 12... c5 {[%clk
0:02:40.1]} 13. Nf4 {[%clk 0:02:53]} 13... Bf6 {[%clk 0:02:01.2]} 14. Be2 {[%clk
0:02:10]} 14... Qc7 {[%clk 0:02:00.5]} 15. Kb1 {[%clk 0:02:08.7]} 15... Bxg5
{[%clk 0:01:46.3]} 16. hxg5 {[%clk 0:02:09.6]} 16... O-O-O {[%clk 0:01:46.7]}
17. Qa5 {[%clk 0:01:50.6]} 17... Kb8 {[%clk 0:01:38.8]} 18. dxc5 {[%clk
0:01:43.2]} 18... Nxc5 {[%clk 0:01:26.1]} 19. Nd3 {[%clk 0:01:43.3]} 19... Nbd7
{[%clk 0:01:14.2]} 20. Qd2 {[%clk 0:01:23.6]} 20... Rc8 {[%clk 0:01:07.4]} 21.
Rc1 {[%clk 0:01:23.1]} 21... Nxd3 {[%clk 0:01:05.2]} 22. cxd3 {[%clk 0:01:22.3]}
22... Qd8 {[%clk 0:01:01.5]} 23. Rxc8+ {[%clk 0:01:21.5]} 23... Bxc8 {[%clk
0:00:56]} 24. Rc1 {[%clk 0:01:22.4]} 24... Bb7 {[%clk 0:00:22.8]} 25. Qc3 {[%clk
0:01:07.6]} 25... e5 {[%clk 0:00:17.8]} 26. d4 {[%clk 0:00:56]} 26... Qc8 {[%clk
0:00:16.3]} 27. Qb4 {[%clk 0:00:55.7]} 27... Qf8 {[%clk 0:00:15.9]} 28. d5
{[%clk 0:00:52.1]} 28... Qe7 {[%clk 0:00:15]} 29. a4 {[%clk 0:00:50]} 29... Rc8
{[%clk 0:00:10.8]} 30. Rxc8+ {[%clk 0:00:43.5]} 30... Kxc8 {[%clk 0:00:10.9]}
31. axb5 {[%clk 0:00:44.4]} 31... axb5 {[%clk 0:00:11.4]} 32. Bxb5 {[%clk
0:00:43.6]} 32... Qd8 {[%clk 0:00:05.9]} 33. Bc6 {[%clk 0:00:37.8]} 33... Qc7
{[%clk 0:00:03.3]} 34. Ba4 {[%clk 0:00:09.7]} 34... Nc5 {[%clk 0:00:01.2]} 35.
Bxc5 {[%clk 0:00:09.3]} 35... Qxc5 {[%clk 0:00:01.7]} 36. Qxc5+ {[%clk
0:00:09.4]} 36... dxc5 {[%clk 0:00:02.2]} 37. Be8 {[%clk 0:00:09.7]} 37... Ba6
{[%clk 0:00:01.5]} 38. Bxf7 {[%clk 0:00:09.6]} 38... Bf1 {[%clk 0:00:02.3]} 39.
Bxg6 {[%clk 0:00:09.7]} 39... Bxg2 {[%clk 0:00:02.3]} 40. Bxh5 {[%clk
0:00:10.2]} 1-0

[Event "Betsys MČR v online bleskovém šachu 2021"]
[Site "Chess.com"]
[Date "2021.04.17"]
[Round "8"]
[White "sodikus"]
[Black "DenryS"]
[Result "0-1"]
[WhiteElo "2243"]
[BlackElo "2139"]
[TimeControl "180+1"]
[EndTime "10:21:42 PDT"]
[Termination "Uživatel DenryS zvítězil na čas"]

1. Nf3 {[%clk 0:03:00.9]} 1... d5 {[%clk 0:02:59.5]} 2. d4 {[%clk 0:03:00.4]}
2... Nc6 {[%clk 0:02:58.1]} 3. c4 {[%clk 0:02:58.9]} 3... Bg4 {[%clk 0:02:55.1]}
4. e3 {[%clk 0:02:53.9]} 4... e6 {[%clk 0:02:52]} 5. Nc3 {[%clk 0:02:45.8]} 5...
Nf6 {[%clk 0:02:49.2]} 6. cxd5 {[%clk 0:02:44.9]} 6... exd5 {[%clk 0:02:45.3]}
7. Bb5 {[%clk 0:02:42.8]} 7... Bd6 {[%clk 0:02:41.5]} 8. h3 {[%clk 0:02:42.4]}
8... Bh5 {[%clk 0:02:38.7]} 9. Qb3 {[%clk 0:02:35.8]} 9... O-O {[%clk
0:02:35.5]} 10. Bd2 {[%clk 0:02:31.1]} 10... Re8 {[%clk 0:02:32.3]} 11. Be2
{[%clk 0:02:00.2]} 11... Na5 {[%clk 0:02:18.3]} 12. Qc2 {[%clk 0:01:58.6]} 12...
c6 {[%clk 0:02:16]} 13. O-O {[%clk 0:01:56.7]} 13... Nc4 {[%clk 0:02:07.9]} 14.
Bxc4 {[%clk 0:01:41.5]} 14... dxc4 {[%clk 0:02:08.8]} 15. Ng5 {[%clk 0:01:24.1]}
15... Bg6 {[%clk 0:01:59.5]} 16. Qd1 {[%clk 0:01:16.6]} 16... Bd3 {[%clk
0:01:49.9]} 17. Re1 {[%clk 0:01:15.9]} 17... h6 {[%clk 0:01:50.3]} 18. Nf3
{[%clk 0:01:15.8]} 18... Nd5 {[%clk 0:01:50.3]} 19. Rc1 {[%clk 0:00:55.4]} 19...
b5 {[%clk 0:01:38.7]} 20. a3 {[%clk 0:00:54.3]} 20... a5 {[%clk 0:01:34.6]} 21.
Nh2 {[%clk 0:00:29.9]} 21... Nxc3 {[%clk 0:01:29.5]} 22. Bxc3 {[%clk 0:00:28.7]}
22... b4 {[%clk 0:01:29.8]} 23. axb4 {[%clk 0:00:24.7]} 23... axb4 {[%clk
0:01:30.7]} 24. Bd2 {[%clk 0:00:24.8]} 24... b3 {[%clk 0:01:15.5]} 25. Qf3
{[%clk 0:00:19.4]} 25... Qb6 {[%clk 0:00:58.9]} 26. Bc3 {[%clk 0:00:17.7]} 26...
Bb4 {[%clk 0:00:56.2]} 27. g3 {[%clk 0:00:14.3]} 27... Bxc3 {[%clk 0:00:54.4]}
28. Rxc3 {[%clk 0:00:15.1]} 28... Ra2 {[%clk 0:00:52.1]} 29. Ng4 {[%clk
0:00:12.6]} 29... Rxb2 {[%clk 0:00:39.7]} 30. Ne5 {[%clk 0:00:12.5]} 30... Rxe5
{[%clk 0:00:25.6]} 31. dxe5 {[%clk 0:00:12.3]} 31... Qa5 {[%clk 0:00:23.1]} 32.
Rec1 {[%clk 0:00:10.8]} 32... Rc2 {[%clk 0:00:14.7]} 33. R3xc2 {[%clk
0:00:08.1]} 33... Bxc2 {[%clk 0:00:09]} 34. Qxc6 {[%clk 0:00:06.4]} 34... b2
{[%clk 0:00:06.9]} 35. Qc8+ {[%clk 0:00:02.2]} 35... Kh7 {[%clk 0:00:05.7]} 36.
Rf1 {[%clk 0:00:02.5]} 36... c3 {[%clk 0:00:04.3]} 37. Qe8 {[%clk 0:00:01.8]}
37... b1=Q {[%clk 0:00:03.4]} 38. Rxb1 {[%clk 0:00:01.3]} 38... Bxb1 {[%clk
0:00:04.3]} 39. Qxf7 {[%clk 0:00:01.7]} 39... Bg6 {[%clk 0:00:04.1]} 0-1

[Event "Betsys MČR v online bleskovém šachu 2021"]
[Site "Chess.com"]
[Date "2021.04.17"]
[Round "8"]
[White "RunningPawnz88"]
[Black "Jacques_se_mas"]
[Result "0-1"]
[WhiteElo "1354"]
[BlackElo "1747"]
[TimeControl "180+1"]
[EndTime "10:21:43 PDT"]
[Termination "Uživatel Jacques_se_mas zvítězil na čas"]

1. e4 {[%clk 0:03:00.7]} 1... e6 {[%clk 0:03:00.2]} 2. d4 {[%clk 0:03:00.2]}
2... b6 {[%clk 0:03:00.7]} 3. Be3 {[%clk 0:02:59.6]} 3... Bb7 {[%clk 0:03:01.1]}
4. Nc3 {[%clk 0:02:56.7]} 4... Bb4 {[%clk 0:03:01.5]} 5. Ne2 {[%clk 0:02:55.4]}
5... Bxe4 {[%clk 0:03:00]} 6. a3 {[%clk 0:02:49.8]} 6... Bxc3+ {[%clk
0:02:59.3]} 7. Nxc3 {[%clk 0:02:49.8]} 7... Bb7 {[%clk 0:02:59.8]} 8. Qd2 {[%clk
0:02:46.1]} 8... Nf6 {[%clk 0:03:00]} 9. O-O-O {[%clk 0:02:45.7]} 9... d5 {[%clk
0:02:58.1]} 10. Bg5 {[%clk 0:02:43.8]} 10... h6 {[%clk 0:02:57]} 11. Bh4 {[%clk
0:02:42.7]} 11... Nbd7 {[%clk 0:02:52]} 12. Bd3 {[%clk 0:02:36.5]} 12... c6
{[%clk 0:02:49]} 13. f3 {[%clk 0:02:32.6]} 13... Qe7 {[%clk 0:02:43.3]} 14. g4
{[%clk 0:02:26.7]} 14... g5 {[%clk 0:02:40.3]} 15. Bg3 {[%clk 0:02:21.4]} 15...
a5 {[%clk 0:02:38.6]} 16. Rde1 {[%clk 0:02:19.1]} 16... b5 {[%clk 0:02:35.4]}
17. Na2 {[%clk 0:02:15.2]} 17... b4 {[%clk 0:02:27.6]} 18. axb4 {[%clk 0:02:06]}
18... axb4 {[%clk 0:02:28]} 19. Qxb4 {[%clk 0:02:00.8]} 19... Rxa2 {[%clk
0:02:27.6]} 20. Qxb7 {[%clk 0:01:55.8]} 20... O-O {[%clk 0:02:23]} 21. Kb1
{[%clk 0:01:44.2]} 21... Rfa8 {[%clk 0:02:20.5]} 22. c3 {[%clk 0:01:37.1]} 22...
Qd8 {[%clk 0:01:56.1]} 23. Qxc6 {[%clk 0:01:26.4]} 23... Qa5 {[%clk 0:01:49.9]}
24. Kc2 {[%clk 0:01:11.1]} 24... Ra7 {[%clk 0:01:32.2]} 25. Be5 {[%clk
0:00:58.1]} 25... Nxe5 {[%clk 0:01:22.8]} 26. Rxe5 {[%clk 0:00:53.7]} 26... Rc7
{[%clk 0:01:22.6]} 27. Qb5 {[%clk 0:00:49.1]} 27... Qxc3+ {[%clk 0:01:18.9]} 28.
Kd1 {[%clk 0:00:45.4]} 28... Ra1+ {[%clk 0:01:07.9]} 29. Ke2 {[%clk 0:00:44.3]}
29... Qxd4 {[%clk 0:00:59.1]} 30. Rxa1 {[%clk 0:00:34.5]} 30... Qxe5+ {[%clk
0:00:59]} 31. Kf2 {[%clk 0:00:33.4]} 31... Qxh2+ {[%clk 0:00:58.1]} 32. Ke3
{[%clk 0:00:32.2]} 32... d4+ {[%clk 0:00:51.9]} 33. Kxd4 {[%clk 0:00:27]} 33...
Qf4+ {[%clk 0:00:48.9]} 34. Be4 {[%clk 0:00:23.7]} 34... e5+ {[%clk 0:00:46.2]}
35. Kd3 {[%clk 0:00:17.3]} 35... Rd7+ {[%clk 0:00:38.9]} 36. Kc2 {[%clk
0:00:11.6]} 36... Rd2+ {[%clk 0:00:28]} 37. Kb3 {[%clk 0:00:10.3]} 37... Qe3+
{[%clk 0:00:25.1]} 38. Ka2 {[%clk 0:00:08]} 38... Nxe4 {[%clk 0:00:22.5]} 39.
fxe4 {[%clk 0:00:06.8]} 39... Qxe4 {[%clk 0:00:18.8]} 40. Qe8+ {[%clk
0:00:06.8]} 40... Kg7 {[%clk 0:00:18.5]} 41. Rf1 {[%clk 0:00:05.2]} 41... Qb7
{[%clk 0:00:15.8]} 0-1

[Event "Betsys MČR v online bleskovém šachu 2021"]
[Site "Chess.com"]
[Date "2021.04.17"]
[Round "8"]
[White "Bancroft"]
[Black "Tobish"]
[Result "1-0"]
[WhiteElo "1918"]
[BlackElo "1678"]
[TimeControl "180+1"]
[EndTime "10:21:44 PDT"]
[Termination "Uživatel Bancroft zvítězil po vzdání soupeře"]

1. d4 {[%clk 0:03:00.9]} 1... d5 {[%clk 0:02:54.4]} 2. c4 {[%clk 0:02:58.8]}
2... Nc6 {[%clk 0:02:51.7]} 3. Nc3 {[%clk 0:02:56.1]} 3... Nf6 {[%clk
0:02:51.1]} 4. Nf3 {[%clk 0:02:54]} 4... Bg4 {[%clk 0:02:49.9]} 5. Bg5 {[%clk
0:02:49.2]} 5... e6 {[%clk 0:02:43.8]} 6. e3 {[%clk 0:02:46.4]} 6... Bb4 {[%clk
0:02:39.8]} 7. Be2 {[%clk 0:02:42.2]} 7... O-O {[%clk 0:02:39.5]} 8. O-O {[%clk
0:02:41.5]} 8... h6 {[%clk 0:02:33.3]} 9. Bh4 {[%clk 0:02:40.7]} 9... Be7 {[%clk
0:02:22.9]} 10. Rc1 {[%clk 0:02:38.6]} 10... Qd7 {[%clk 0:02:01]} 11. h3 {[%clk
0:02:37.3]} 11... Bf5 {[%clk 0:01:58.7]} 12. Bg3 {[%clk 0:02:26]} 12... Ne4
{[%clk 0:01:57.2]} 13. Nxe4 {[%clk 0:02:24.5]} 13... Bxe4 {[%clk 0:01:49.4]} 14.
cxd5 {[%clk 0:02:24]} 14... exd5 {[%clk 0:01:48.6]} 15. Bb5 {[%clk 0:02:16.8]}
15... Bd6 {[%clk 0:01:33.3]} 16. Ne5 {[%clk 0:02:08.5]} 16... Bxe5 {[%clk
0:01:29.1]} 17. Bxe5 {[%clk 0:02:09.4]} 17... Qe6 {[%clk 0:01:25.3]} 18. Bxc7
{[%clk 0:02:05.8]} 18... Rac8 {[%clk 0:01:22.4]} 19. Bg3 {[%clk 0:01:59]} 19...
Nb4 {[%clk 0:01:17.9]} 20. a3 {[%clk 0:01:46.9]} 20... Nc6 {[%clk 0:00:59.1]}
21. Bd3 {[%clk 0:01:44.8]} 21... Ne7 {[%clk 0:00:55.3]} 22. Bxe4 {[%clk
0:01:35.3]} 22... Qxe4 {[%clk 0:00:48.8]} 23. Qb3 {[%clk 0:01:34.5]} 23... b6
{[%clk 0:00:40.7]} 24. Bd6 {[%clk 0:01:26.6]} 24... Rfd8 {[%clk 0:00:34.4]} 25.
Bxe7 {[%clk 0:01:14.3]} 25... Qxe7 {[%clk 0:00:32.8]} 26. Rc3 {[%clk 0:01:08.7]}
26... Rxc3 {[%clk 0:00:19.8]} 27. Qxc3 {[%clk 0:01:08.3]} 27... Rd7 {[%clk
0:00:16.5]} 28. Rc1 {[%clk 0:01:08.5]} 28... Kh7 {[%clk 0:00:16.4]} 29. Qc6
{[%clk 0:01:06.2]} 29... g6 {[%clk 0:00:15.2]} 30. b4 {[%clk 0:01:05.1]} 30...
Kg7 {[%clk 0:00:15]} 31. a4 {[%clk 0:01:04.5]} 31... Kh7 {[%clk 0:00:14.4]} 32.
a5 {[%clk 0:01:00.2]} 32... bxa5 {[%clk 0:00:13.4]} 33. bxa5 {[%clk 0:01:00.9]}
33... Kg7 {[%clk 0:00:13.3]} 34. a6 {[%clk 0:01:00]} 34... Kh7 {[%clk
0:00:13.2]} 35. Rc5 {[%clk 0:00:58]} 35... Rd6 {[%clk 0:00:12.3]} 36. Qb7 {[%clk
0:00:49.1]} 36... Rd7 {[%clk 0:00:08.7]} 37. Qb5 {[%clk 0:00:40.7]} 37... Qd6
{[%clk 0:00:05.9]} 38. Rc6 {[%clk 0:00:32.6]} 38... Qe7 {[%clk 0:00:05.8]} 39.
Qc5 {[%clk 0:00:30]} 39... Qd8 {[%clk 0:00:04.3]} 40. Rc8 {[%clk 0:00:25.3]}
40... Qf6 {[%clk 0:00:02]} 41. Qf8 {[%clk 0:00:22.5]} 41... Qg7 {[%clk
0:00:02.1]} 42. Qe8 {[%clk 0:00:19.1]} 42... Rd6 {[%clk 0:00:02.1]} 43. Rc7
{[%clk 0:00:15.8]} 43... Rxa6 {[%clk 0:00:02.6]} 44. Rxf7 {[%clk 0:00:15.1]}
44... Ra1+ {[%clk 0:00:01.9]} 45. Kh2 {[%clk 0:00:14.8]} 1-0

[Event "Betsys MČR v online bleskovém šachu 2021"]
[Site "Chess.com"]
[Date "2021.04.17"]
[Round "8"]
[White "matej-c"]
[Black "Naty139"]
[Result "0-1"]
[WhiteElo "1961"]
[BlackElo "2224"]
[TimeControl "180+1"]
[EndTime "10:21:45 PDT"]
[Termination "Uživatel Naty139 zvítězil na čas"]

1. d4 {[%clk 0:02:53]} 1... d5 {[%clk 0:02:58.9]} 2. c4 {[%clk 0:02:52]} 2... c6
{[%clk 0:02:58.7]} 3. cxd5 {[%clk 0:02:51]} 3... cxd5 {[%clk 0:02:58.2]} 4. Nf3
{[%clk 0:02:51.6]} 4... Nc6 {[%clk 0:02:58.6]} 5. Nc3 {[%clk 0:02:51.8]} 5...
Nf6 {[%clk 0:02:58]} 6. Bf4 {[%clk 0:02:52.3]} 6... a6 {[%clk 0:02:57]} 7. e3
{[%clk 0:02:52.4]} 7... Nh5 {[%clk 0:02:48.5]} 8. Bg5 {[%clk 0:02:49.2]} 8... h6
{[%clk 0:02:47.6]} 9. Bh4 {[%clk 0:02:49]} 9... g5 {[%clk 0:02:45.9]} 10. Bg3
{[%clk 0:02:46.9]} 10... Nxg3 {[%clk 0:02:40.4]} 11. hxg3 {[%clk 0:02:46.9]}
11... Bg7 {[%clk 0:02:40.9]} 12. Bd3 {[%clk 0:02:44.1]} 12... Qa5 {[%clk
0:02:23.5]} 13. Rc1 {[%clk 0:02:35.7]} 13... Be6 {[%clk 0:02:12.3]} 14. Qb3
{[%clk 0:02:24.5]} 14... Rb8 {[%clk 0:01:56.9]} 15. Kf1 {[%clk 0:02:07.3]} 15...
O-O {[%clk 0:01:51]} 16. Bb1 {[%clk 0:01:39.7]} 16... f5 {[%clk 0:01:37]} 17.
Qc2 {[%clk 0:01:32.2]} 17... Nb4 {[%clk 0:01:36.2]} 18. Qd2 {[%clk 0:01:25.5]}
18... Rbc8 {[%clk 0:01:23.9]} 19. a3 {[%clk 0:01:12]} 19... Nc6 {[%clk
0:01:23.3]} 20. Qd3 {[%clk 0:01:08.4]} 20... b5 {[%clk 0:01:13.2]} 21. g4 {[%clk
0:00:54.6]} 21... b4 {[%clk 0:01:12.3]} 22. axb4 {[%clk 0:00:48.2]} 22... Nxb4
{[%clk 0:01:11.4]} 23. Qd2 {[%clk 0:00:46.3]} 23... fxg4 {[%clk 0:01:05.9]} 24.
Ne5 {[%clk 0:00:42.6]} 24... Bxe5 {[%clk 0:00:57.1]} 25. dxe5 {[%clk 0:00:42.2]}
25... Kg7 {[%clk 0:00:56]} 26. Kg1 {[%clk 0:00:32.6]} 26... Nc6 {[%clk
0:00:50.1]} 27. f4 {[%clk 0:00:24.1]} 27... gxf3 {[%clk 0:00:48.5]} 28. gxf3
{[%clk 0:00:20.4]} 28... Nxe5 {[%clk 0:00:48]} 29. Qd4 {[%clk 0:00:16]} 29...
Qc7 {[%clk 0:00:22.5]} 30. f4 {[%clk 0:00:15.6]} 30... gxf4 {[%clk 0:00:21.6]}
31. exf4 {[%clk 0:00:13.5]} 31... Rf6 {[%clk 0:00:17]} 32. fxe5 {[%clk
0:00:10.6]} 32... Rf3 {[%clk 0:00:15.7]} 33. Rh2 {[%clk 0:00:06.9]} 33... Rg3+
{[%clk 0:00:14.8]} 34. Rg2 {[%clk 0:00:06.5]} 34... Rxg2+ {[%clk 0:00:14.6]} 35.
Kxg2 {[%clk 0:00:07.4]} 35... Rg8 {[%clk 0:00:14.7]} 36. Kh2 {[%clk 0:00:07.6]}
36... Kf8 {[%clk 0:00:13.8]} 37. Rf1+ {[%clk 0:00:07.2]} 37... Ke8 {[%clk
0:00:13.8]} 38. Bh7 {[%clk 0:00:05.1]} 38... Rg7 {[%clk 0:00:12.6]} 39. Bd3
{[%clk 0:00:04.5]} 39... Rg5 {[%clk 0:00:12.3]} 40. Qh4 {[%clk 0:00:03.8]} 40...
Rxe5 {[%clk 0:00:11.1]} 41. Kh1 {[%clk 0:00:02.7]} 41... Kd7 {[%clk 0:00:10.3]}
0-1

[Event "Betsys MČR v online bleskovém šachu 2021"]
[Site "Chess.com"]
[Date "2021.04.17"]
[Round "8"]
[White "mendryxchess"]
[Black "Johanna94"]
[Result "0-1"]
[WhiteElo "1783"]
[BlackElo "2072"]
[TimeControl "180+1"]
[EndTime "10:21:48 PDT"]
[Termination "Uživatel Johanna94 zvítězil matem"]

1. e4 {[%clk 0:03:00.9]} 1... c6 {[%clk 0:03:00]} 2. d4 {[%clk 0:03:00.1]} 2...
d5 {[%clk 0:03:00.3]} 3. exd5 {[%clk 0:03:00.6]} 3... cxd5 {[%clk 0:03:00.3]} 4.
c4 {[%clk 0:03:01.1]} 4... Nf6 {[%clk 0:03:00.5]} 5. Nc3 {[%clk 0:03:00.8]} 5...
Nc6 {[%clk 0:03:00.4]} 6. Nf3 {[%clk 0:03:00.7]} 6... Bg4 {[%clk 0:02:59.9]} 7.
cxd5 {[%clk 0:03:00.4]} 7... Nxd5 {[%clk 0:02:59.6]} 8. Qb3 {[%clk 0:03:00.7]}
8... Bxf3 {[%clk 0:02:52.9]} 9. gxf3 {[%clk 0:03:00]} 9... Nxc3 {[%clk
0:02:04.8]} 10. bxc3 {[%clk 0:03:00.9]} 10... Qc7 {[%clk 0:01:58.8]} 11. d5
{[%clk 0:02:45]} 11... Ne5 {[%clk 0:01:54.6]} 12. Bb5+ {[%clk 0:02:34.4]} 12...
Nd7 {[%clk 0:01:54.1]} 13. Be3 {[%clk 0:02:16.4]} 13... a6 {[%clk 0:01:41.6]}
14. Bc4 {[%clk 0:02:13.8]} 14... Rc8 {[%clk 0:01:37.9]} 15. Bd3 {[%clk
0:01:51.3]} 15... Qxc3+ {[%clk 0:01:37.3]} 16. Qxc3 {[%clk 0:01:50.7]} 16...
Rxc3 {[%clk 0:01:37]} 17. Bf5 {[%clk 0:01:42.6]} 17... Rc7 {[%clk 0:00:30]} 18.
Ke2 {[%clk 0:01:36.2]} 18... g6 {[%clk 0:00:28.9]} 19. Bd4 {[%clk 0:01:26.6]}
19... Rg8 {[%clk 0:00:24.8]} 20. Be4 {[%clk 0:01:09.3]} 20... f5 {[%clk
0:00:24.2]} 21. Bd3 {[%clk 0:01:07.9]} 21... Nf6 {[%clk 0:00:24.4]} 22. Be5
{[%clk 0:01:01.6]} 22... Rd7 {[%clk 0:00:22.4]} 23. Rhd1 {[%clk 0:00:51]} 23...
Kf7 {[%clk 0:00:21.8]} 24. Bc4 {[%clk 0:00:48.7]} 24... Bg7 {[%clk 0:00:21.4]}
25. d6+ {[%clk 0:00:41.3]} 25... e6 {[%clk 0:00:21.5]} 26. Rac1 {[%clk 0:00:39]}
26... Rgd8 {[%clk 0:00:21.6]} 27. Bb3 {[%clk 0:00:34.3]} 27... Ne8 {[%clk
0:00:21.6]} 28. Bxg7 {[%clk 0:00:30.6]} 28... Nxg7 {[%clk 0:00:21.9]} 29. Rc7
{[%clk 0:00:28.4]} 29... Ne8 {[%clk 0:00:21.8]} 30. Ba4 {[%clk 0:00:09.7]} 30...
b5 {[%clk 0:00:21.4]} 31. Rxd7+ {[%clk 0:00:08.2]} 31... Rxd7 {[%clk 0:00:21.3]}
32. Bb3 {[%clk 0:00:09]} 32... Rxd6 {[%clk 0:00:20.7]} 33. Rc1 {[%clk
0:00:08.7]} 33... Ke7 {[%clk 0:00:20.8]} 34. Rc7+ {[%clk 0:00:08.8]} 34... Nxc7
{[%clk 0:00:19.8]} 35. Ke3 {[%clk 0:00:09.6]} 35... a5 {[%clk 0:00:20.3]} 36.
Kf4 {[%clk 0:00:10.5]} 36... a4 {[%clk 0:00:20.8]} 37. Kg5 {[%clk 0:00:11.4]}
37... axb3 {[%clk 0:00:20.4]} 38. Kh6 {[%clk 0:00:12.3]} 38... e5 {[%clk
0:00:21.3]} 39. Kxh7 {[%clk 0:00:13.2]} 39... Kf6 {[%clk 0:00:21.1]} 40. Kg8
{[%clk 0:00:14.1]} 40... Rd8+ {[%clk 0:00:21.4]} 41. Kh7 {[%clk 0:00:13.9]}
41... bxa2 {[%clk 0:00:21.7]} 42. f4 {[%clk 0:00:14.3]} 42... a1=N {[%clk
0:00:21.7]} 43. fxe5+ {[%clk 0:00:14.9]} 43... Kxe5 {[%clk 0:00:22.3]} 44. f4+
{[%clk 0:00:15.8]} 44... Kxf4 {[%clk 0:00:21.8]} 45. h4 {[%clk 0:00:16.6]} 45...
Rd2 {[%clk 0:00:22]} 46. h5 {[%clk 0:00:16.4]} 46... gxh5 {[%clk 0:00:22.5]} 47.
Kg6 {[%clk 0:00:17]} 47... h4 {[%clk 0:00:23.4]} 48. Kf6 {[%clk 0:00:17.6]}
48... h3 {[%clk 0:00:24]} 49. Kg6 {[%clk 0:00:16.9]} 49... h2 {[%clk 0:00:24.5]}
50. Kf7 {[%clk 0:00:17.5]} 50... Rd6 {[%clk 0:00:24.3]} 51. Kg7 {[%clk
0:00:18.4]} 51... Ra6 {[%clk 0:00:24.8]} 52. Kf7 {[%clk 0:00:19.2]} 52... Nd5
{[%clk 0:00:25.4]} 53. Kg7 {[%clk 0:00:18.8]} 53... Ne3 {[%clk 0:00:26.3]} 54.
Kh7 {[%clk 0:00:19.2]} 54... h1=Q+ {[%clk 0:00:26]} 55. Kg7 {[%clk 0:00:19.9]}
55... Qh6+ {[%clk 0:00:26.2]} 56. Kf7 {[%clk 0:00:20]} 56... Ra7+ {[%clk
0:00:26.6]} 57. Kg8 {[%clk 0:00:19.5]} 57... Qg7# {[%clk 0:00:26.8]} 0-1

[Event "Betsys MČR v online bleskovém šachu 2021"]
[Site "Chess.com"]
[Date "2021.04.17"]
[Round "8"]
[White "Maty_2010"]
[Black "valid88"]
[Result "0-1"]
[WhiteElo "984"]
[BlackElo "1340"]
[TimeControl "180+1"]
[EndTime "10:21:48 PDT"]
[Termination "Uživatel valid88 zvítězil na čas"]

1. e4 {[%clk 0:03:00.5]} 1... c6 {[%clk 0:02:59.5]} 2. Bc4 {[%clk 0:02:50.1]}
2... d5 {[%clk 0:02:38.8]} 3. exd5 {[%clk 0:02:47]} 3... cxd5 {[%clk 0:02:38.4]}
4. Bb5+ {[%clk 0:02:47.3]} 4... Bd7 {[%clk 0:02:38.5]} 5. Bxd7+ {[%clk
0:02:44.3]} 5... Qxd7 {[%clk 0:02:36.4]} 6. d4 {[%clk 0:02:43]} 6... e6 {[%clk
0:02:34.6]} 7. Bf4 {[%clk 0:02:43.1]} 7... Bd6 {[%clk 0:02:33]} 8. Bxd6 {[%clk
0:02:39.9]} 8... Qxd6 {[%clk 0:02:32.9]} 9. Nc3 {[%clk 0:02:40]} 9... Nc6 {[%clk
0:02:32.4]} 10. Nb5 {[%clk 0:02:37.1]} 10... Qd8 {[%clk 0:02:16.2]} 11. Qf3
{[%clk 0:02:33.9]} 11... Nf6 {[%clk 0:02:00.4]} 12. Qg3 {[%clk 0:02:30.2]} 12...
O-O {[%clk 0:01:41.7]} 13. Nc7 {[%clk 0:02:27.6]} 13... Rc8 {[%clk 0:01:31.7]}
14. Nb5 {[%clk 0:02:18.7]} 14... a6 {[%clk 0:01:25.5]} 15. Nc3 {[%clk
0:02:15.4]} 15... Nxd4 {[%clk 0:01:22.7]} 16. O-O-O {[%clk 0:02:13.1]} 16... Nb5
{[%clk 0:01:12.8]} 17. Nxb5 {[%clk 0:02:11.3]} 17... axb5 {[%clk 0:01:11.9]} 18.
Nf3 {[%clk 0:02:11.9]} 18... Qc7 {[%clk 0:01:11.4]} 19. Qxc7 {[%clk 0:01:59.2]}
19... Rxc7 {[%clk 0:01:11.5]} 20. Ne5 {[%clk 0:01:59.5]} 20... Rfc8 {[%clk
0:01:11.4]} 21. c3 {[%clk 0:01:55.7]} 21... b4 {[%clk 0:01:09.9]} 22. Rd3 {[%clk
0:01:50.2]} 22... bxc3 {[%clk 0:01:05.1]} 23. bxc3 {[%clk 0:01:50]} 23... Ne4
{[%clk 0:01:04.5]} 24. Kb2 {[%clk 0:01:38.3]} 24... Rxc3 {[%clk 0:00:55.6]} 25.
Rxc3 {[%clk 0:01:37.7]} 25... Rxc3 {[%clk 0:00:54.7]} 26. a4 {[%clk 0:01:35.2]}
26... Rc8 {[%clk 0:00:48.5]} 27. a5 {[%clk 0:01:33.6]} 27... Ra8 {[%clk
0:00:48.4]} 28. Rc1 {[%clk 0:01:30.4]} 28... f6 {[%clk 0:00:40.9]} 29. Nd7
{[%clk 0:01:29.4]} 29... Rxa5 {[%clk 0:00:36.2]} 30. Rc8+ {[%clk 0:01:22.2]}
30... Kf7 {[%clk 0:00:36]} 31. Rc7 {[%clk 0:00:59.2]} 31... Kg6 {[%clk 0:00:31]}
32. Rxb7 {[%clk 0:00:56.3]} 32... Nxf2 {[%clk 0:00:29.7]} 33. Nf8+ {[%clk
0:00:52.6]} 33... Kh6 {[%clk 0:00:29.4]} 34. h3 {[%clk 0:00:49.5]} 34... e5
{[%clk 0:00:25.8]} 35. Kc3 {[%clk 0:00:39.9]} 35... d4+ {[%clk 0:00:25.5]} 36.
Kd2 {[%clk 0:00:38.7]} 36... Ra2+ {[%clk 0:00:25]} 37. Ke1 {[%clk 0:00:34.6]}
37... d3 {[%clk 0:00:23.1]} 38. Ne6 {[%clk 0:00:21.6]} 38... d2+ {[%clk
0:00:21.9]} 39. Kxf2 {[%clk 0:00:19]} 39... d1=Q+ {[%clk 0:00:22]} 40. Kg3
{[%clk 0:00:08.3]} 40... Qd3+ {[%clk 0:00:16.9]} 41. Kh2 {[%clk 0:00:07.1]}
41... Qg6 {[%clk 0:00:12.5]} 42. Rxg7 {[%clk 0:00:04.9]} 42... Qxg7 {[%clk
0:00:12.2]} 43. Nxg7 {[%clk 0:00:04.4]} 43... Kxg7 {[%clk 0:00:13.1]} 44. h4
{[%clk 0:00:03.8]} 44... e4 {[%clk 0:00:13.5]} 45. h5 {[%clk 0:00:03.9]} 45...
e3 {[%clk 0:00:13.7]} 0-1